fUSD/lending_fUSD_20250219
["ID","MTS","AMOUNT","RATE_DAILY","PERIOD"]
[353660909,1739985054236,-500.0,0.0001331,2]
[353660910,1739985054245,-500.0,0.0001331,2]
[353660911,1739985054255,-500.0,0.0001331,2]
[353660912,1739985054265,-500.0,0.0001331,2]
[353660913,1739985054274,-770.48,0.0001331,2]
[353660914,1739985054284,-500.0,0.0001331,2]
[353660915,1739985054294,-500.0,0.0001331,2]
[353660916,1739985054303,-705.15,0.0001331,2]
[353660917,1739985054313,-1154.89,0.0001331,2]
[353660918,1739985054323,-500.0,0.0001331,2]
[353660919,1739985054335,-934.25,0.0001331,2]
[353660920,1739985054344,-500.0,0.0001331,2]
[353660921,1739985054353,-500.0,0.0001331,2]
[353660922,1739985054363,-500.0,0.0001331,2]
[353660923,1739985054373,-500.0,0.0001331,2]
[353660924,1739985054383,-1171.57,0.0001331,2]
[353660925,1739985054392,-500.0,0.0001331,2]
[353660926,1739985054401,-783.71,0.0001331,2]
[353660927,1739985054411,-662.75,0.0001331,2]
[353660928,1739985054420,-855.61,0.0001331,2]
[353660929,1739985054430,-500.0,0.0001331,2]
[353660930,1739985054440,-500.0,0.0001331,2]
[353660931,1739985054454,-1216.11,0.0001331,2]
[353660932,1739985054463,-500.0,0.0001331,2]
[353660933,1739985054473,-664.26,0.0001331,2]
[353660934,1739985054482,-500.0,0.0001331,2]
[353660935,1739985054492,-500.0,0.0001331,2]
[353660936,1739985054501,-520.74647553,0.0001331,2]
[353660937,1739985054510,-500.0,0.0001331,2]
[353660938,1739985054520,-580.53,0.0001331,2]
[353660939,1739985054529,-771.48,0.0001331,2]
[353660940,1739985054539,-680.3,0.0001331,2]
[353660941,1739985054548,-500.0,0.0001331,2]
[353660942,1739985054558,-899.09,0.0001331,2]
[353660943,1739985054567,-500.0,0.0001331,2]
[353660944,1739985054578,-766.28,0.0001331,2]
[353660945,1739985054587,-500.0,0.0001331,2]
[353660946,1739985054597,-500.0,0.0001331,2]
[353660947,1739985054606,-500.0,0.0001331,2]
[353660948,1739985054616,-500.0,0.0001331,2]
[353660949,1739985054625,-1001.21,0.0001331,2]
[353660950,1739985054634,-500.0,0.0001331,2]
[353660951,1739985054644,-500.0,0.0001331,2]
[353660952,1739985054655,-500.0,0.0001331,2]
[353660953,1739985054665,-500.0,0.0001331,2]
[353660954,1739985054675,-620.8,0.0001331,2]
[353660955,1739985054685,-500.0,0.0001331,2]
[353660956,1739985054695,-500.0,0.0001331,2]
[353660957,1739985054704,-500.0,0.0001331,2]
[353660958,1739985054714,-500.0,0.0001331,2]
[353660959,1739985054725,-575.5,0.0001331,2]
[353660960,1739985054735,-773.69,0.0001331,2]
[353660961,1739985054745,-568.58,0.0001331,2]
[353660962,1739985054755,-775.67,0.0001331,2]
[353660963,1739985054764,-500.0,0.0001331,2]
[353660964,1739985054774,-500.0,0.0001331,2]
[353660965,1739985054785,-994.51,0.0001331,2]
[353660966,1739985054794,-838.48,0.0001331,2]
[353660967,1739985054804,-701.31,0.0001331,2]
[353660968,1739985054814,-500.0,0.0001331,2]
[353660969,1739985054824,-959.8,0.0001331,2]
[353660970,1739985054835,-500.0,0.0001331,2]
[353660971,1739985054846,-843.52,0.0001331,2]
[353660972,1739985054856,-500.0,0.0001331,2]
[353660973,1739985054867,-500.0,0.0001331,2]
[353660974,1739985054878,-500.0,0.0001331,2]
[353660975,1739985054888,-662.93,0.0001331,2]
[353660976,1739985054898,-1223.64,0.0001331,2]
[353660977,1739985054908,-587.49,0.0001331,2]
[353660978,1739985054917,-500.0,0.0001331,2]
[353660979,1739985054927,-500.0,0.0001331,2]
[353660980,1739985054937,-500.0,0.0001331,2]
[353660981,1739985054947,-500.0,0.0001331,2]
[353660982,1739985054956,-864.41,0.0001331,2]
[353660983,1739985054966,-500.0,0.0001331,2]
[353660984,1739985054976,-500.0,0.0001331,2]
[353660985,1739985054986,-500.0,0.0001331,2]
[353660986,1739985054996,-500.0,0.0001331,2]
[353660987,1739985055006,-500.0,0.0001331,2]
[353660988,1739985055015,-500.0,0.0001331,2]
[353660989,1739985055025,-500.0,0.0001331,2]
[353660990,1739985055035,-500.0,0.0001331,2]
[353660991,1739985055045,-500.0,0.0001331,2]
[353660992,1739985055055,-500.0,0.0001331,2]
[353660993,1739985055065,-500.0,0.0001331,2]
[353660994,1739985055075,-500.0,0.0001331,2]
[353660995,1739985055085,-500.0,0.0001331,2]
[353660996,1739985055095,-500.0,0.0001331,2]
[353660997,1739985055105,-500.0,0.0001331,2]
[353660998,1739985055114,-500.0,0.0001331,2]
[353660999,1739985055124,-500.0,0.0001331,2]
[353661000,1739985055134,-500.0,0.0001331,2]
[353661001,1739985055143,-881.56,0.0001331,2]
[353661002,1739985055153,-940.03,0.0001331,2]
[353661003,1739985055162,-500.0,0.0001331,2]
[353661004,1739985055172,-500.0,0.0001331,2]
[353661005,1739985055181,-782.07,0.0001331,2]
[353661006,1739985055191,-500.0,0.0001331,2]
[353661007,1739985055201,-1437.46,0.0001331,2]
[353661008,1739985055210,-667.23,0.0001331,2]
[353661009,1739985055219,-500.0,0.0001331,2]
[353661010,1739985055229,-500.0,0.0001331,2]
[353661011,1739985055239,-946.01,0.0001331,2]
[353661012,1739985055248,-629.74,0.0001331,2]
[353661013,1739985055258,-500.0,0.0001331,2]
[353661014,1739985055267,-500.0,0.0001331,2]
[353661015,1739985055277,-500.0,0.0001331,2]
[353661016,1739985055286,-792.49,0.0001331,2]
[353661017,1739985055296,-547.21,0.0001331,2]
[353661018,1739985055305,-500.0,0.0001331,2]
[353661019,1739985055315,-569.48,0.0001331,2]
[353661020,1739985055324,-500.0,0.0001331,2]
[353661021,1739985055334,-1318.86,0.0001331,2]
[353661022,1739985055344,-789.26,0.0001331,2]
[353661023,1739985055354,-500.0,0.0001331,2]
[353661024,1739985055365,-500.0,0.0001331,2]
[353661025,1739985055375,-500.0,0.0001331,2]
[353661026,1739985055385,-630.78,0.0001331,2]
[353661027,1739985055395,-846.92,0.0001331,2]
[353661028,1739985055405,-500.0,0.0001331,2]
[353661029,1739985055415,-1512.56,0.0001331,2]
[353661030,1739985055426,-1258.27,0.0001331,2]
[353661031,1739985055436,-514.82740287,0.0001331,2]
[353661032,1739985055450,-936.34,0.0001331,2]
[353661033,1739985055460,-500.0,0.0001331,2]
[353661034,1739985055470,-911.3,0.0001331,2]
[353661035,1739985055479,-726.56,0.0001331,2]
[353661036,1739985055489,-689.28,0.0001331,2]
[353661037,1739985055499,-500.0,0.0001331,2]
[353661038,1739985055508,-500.0,0.0001331,2]
[353661039,1739985055519,-2145.81,0.0001331,2]
[353661040,1739985055530,-1226.41,0.0001331,2]
[353661041,1739985055541,-500.0,0.0001331,2]
[353661042,1739985055551,-500.0,0.0001331,2]
[353661043,1739985055561,-1388.62,0.0001331,2]
[353661044,1739985055571,-524.65,0.0001331,2]
[353661045,1739985055581,-500.0,0.0001331,2]
[353661046,1739985055591,-577.95,0.0001331,2]
[353661047,1739985055601,-500.0,0.0001331,2]
[353661048,1739985055612,-500.0,0.0001331,2]
[353661049,1739985055622,-500.0,0.0001331,2]
[353661050,1739985055632,-500.0,0.0001331,2]
[353661051,1739985055642,-2409.7,0.0001331,2]
[353661052,1739985055651,-500.0,0.0001331,2]
[353661053,1739985055661,-679.91,0.0001331,2]
[353661054,1739985055671,-1389.25,0.0001331,2]
[353661055,1739985055681,-1407.61,0.0001331,2]
[353661056,1739985055691,-554.95,0.0001331,2]
[353661057,1739985055701,-1330.39,0.0001331,2]
[353661058,1739985055711,-629.82,0.0001331,2]
[353661059,1739985055721,-500.0,0.0001331,2]
[353661060,1739985055731,-500.0,0.0001331,2]
[353661061,1739985055741,-1250.59,0.0001331,2]
[353661062,1739985055750,-2411.21,0.0001331,2]
[353661063,1739985055759,-1012.18,0.0001331,2]
[353661064,1739985055769,-1911.7,0.0001331,2]
[353661065,1739985055779,-500.0,0.0001331,2]
[353661066,1739985055789,-2151.15,0.0001331,2]
[353661067,1739985055799,-667.71,0.0001331,2]
[353661068,1739985055808,-500.0,0.0001331,2]
[353661069,1739985055817,-599.36,0.0001331,2]
[353661070,1739985055828,-946.91,0.0001331,2]
[353661071,1739985055838,-500.0,0.0001331,2]
[353661072,1739985055848,-660.28,0.0001331,2]
[353661073,1739985055858,-2134.34,0.0001331,2]
[353661074,1739985055869,-629.78,0.0001331,2]
[353661075,1739985055878,-557.59,0.0001331,2]
[353661076,1739985055888,-1525.22,0.0001331,2]
[353661077,1739985055898,-3523.54,0.0001331,2]
[353661078,1739985055908,-500.0,0.0001331,2]
[353661079,1739985055918,-3950.45,0.0001331,2]
[353661080,1739985055927,-1281.41,0.0001331,2]
[353661081,1739985055937,-888.47,0.0001331,2]
[353661082,1739985055947,-500.0,0.0001331,2]
[353661083,1739985055956,-500.0,0.0001331,2]
[353661084,1739985055966,-1867.19,0.0001331,2]
[353661085,1739985055976,-741.29,0.0001331,2]
[353661086,1739985055985,-500.0,0.0001331,2]
[353661087,1739985055995,-1953.23,0.0001331,2]
[353661088,1739985056005,-500.0,0.0001331,2]
[353661089,1739985056014,-877.23,0.0001331,2]
[353661090,1739985056024,-3500.11,0.0001331,2]
[353661091,1739985056033,-500.0,0.0001331,2]
[353661092,1739985056043,-1030.43,0.0001331,2]
[353661093,1739985056053,-1014.53,0.0001331,2]
[353661094,1739985056063,-3703.23,0.0001331,2]
[353661095,1739985056072,-3497.27,0.0001331,2]
[353661096,1739985056083,-1968.13,0.0001331,2]
[353661097,1739985056094,-500.0,0.0001331,2]
[353661098,1739985056103,-500.0,0.0001331,2]
[353661099,1739985056113,-661.06,0.0001331,2]
[353661100,1739985056122,-1182.59,0.0001331,2]
[353661101,1739985056132,-500.0,0.0001331,2]
[353661102,1739985056141,-803.25,0.0001331,2]
[353661103,1739985056151,-2652.57,0.0001331,2]
[353661104,1739985056160,-500.0,0.0001331,2]
[353661105,1739985056170,-1501.34,0.0001331,2]
[353661106,1739985056179,-500.0,0.0001331,2]
[353661107,1739985056189,-2453.98,0.0001331,2]
[353661108,1739985056199,-777.79,0.0001331,2]
[353661109,1739985056208,-1153.15,0.0001331,2]
[353661110,1739985056218,-763.09,0.0001331,2]
[353661111,1739985056229,-1026.57,0.0001331,2]
[353661112,1739985056238,-500.0,0.0001331,2]
[353661113,1739985056247,-500.0,0.0001331,2]
[353661114,1739985056256,-1034.96,0.0001331,2]
[353661115,1739985056267,-553.1,0.0001331,2]
[353661116,1739985056276,-1175.86,0.0001331,2]
[353661117,1739985056286,-753.96,0.0001331,2]
[353661118,1739985056295,-2070.96,0.0001331,2]
[353661119,1739985056305,-1670.07,0.0001331,2]
[353661120,1739985056315,-500.0,0.0001331,2]
[353661121,1739985056324,-2257.34,0.0001331,2]
[353661122,1739985056336,-500.0,0.0001331,2]
[353661123,1739985056346,-2728.92,0.0001331,2]
[353661124,1739985056356,-677.22,0.0001331,2]
[353661125,1739985056366,-735.46,0.0001331,2]
[353661126,1739985056376,-500.0,0.0001331,2]
[353661127,1739985056386,-1011.42,0.0001331,2]
[353661128,1739985056395,-1190.78,0.0001331,2]
[353661129,1739985056405,-500.0,0.0001331,2]
[353661130,1739985056415,-2558.84,0.0001331,2]
[353661131,1739985056424,-948.03,0.0001331,2]
[353661132,1739985056434,-1137.44,0.0001331,2]
[353661133,1739985056445,-2180.17,0.0001331,2]
[353661134,1739985056455,-500.0,0.0001331,2]
[353661135,1739985056466,-960.03,0.0001331,2]
[353661136,1739985056476,-1333.36,0.0001331,2]
[353661137,1739985056489,-1063.91,0.0001331,2]
[353661138,1739985056498,-500.0,0.0001331,2]
[353661139,1739985056507,-869.91,0.0001331,2]
[353661140,1739985056517,-500.0,0.0001331,2]
[353661141,1739985056527,-500.0,0.0001331,2]
[353661142,1739985056538,-550.98,0.0001331,2]
[353661143,1739985056547,-500.0,0.0001331,2]
[353661144,1739985056556,-624.7,0.0001331,2]
[353661145,1739985056566,-553.14,0.0001331,2]
[353661146,1739985056576,-2449.41,0.0001331,2]
[353661147,1739985056586,-2416.56,0.0001331,2]
[353661148,1739985056595,-500.0,0.0001331,2]
[353661149,1739985056605,-500.0,0.0001331,2]
[353661150,1739985056615,-373.14507578,0.0001331,2]
[353661151,1739985056625,-556.2,0.0001331,2]
[353661152,1739985056635,-570.64,0.0001331,2]
[353661153,1739985056645,-500.0,0.0001331,2]
[353661154,1739985056654,-1298.3,0.0001331,2]
[353661155,1739985056664,-500.0,0.0001331,2]
[353661156,1739985056674,-611.73,0.0001331,2]
[353661157,1739985056683,-1246.1,0.0001331,2]
[353661158,1739985056693,-500.0,0.0001331,2]
[353661159,1739985056703,-500.0,0.0001331,2]
[353661160,1739985056712,-500.0,0.0001331,2]
[353661161,1739985056722,-500.0,0.0001331,2]
[353661162,1739985056732,-1635.76,0.0001331,2]
[353661163,1739985056742,-616.32,0.0001331,2]
[353661164,1739985056751,-2507.84,0.0001331,2]
[353661165,1739985056761,-958.19,0.0001331,2]
[353661166,1739985056770,-895.44,0.0001331,2]
[353661167,1739985056780,-500.0,0.0001331,2]
[353661168,1739985056791,-1251.71,0.0001331,2]
[353661169,1739985056800,-1246.79,0.00013311,2]
[353661170,1739985056809,-1156.33,0.00013311,2]
[353661171,1739985056818,-1157.28,0.00013311,2]
[353661172,1739985056828,-500.0,0.00013311,2]
[353661173,1739985056837,-914.13,0.00013311,2]
[353661174,1739985056847,-1917.24,0.00013311,2]
[353661175,1739985056856,-849.28,0.00013311,2]
[353661176,1739985056865,-500.0,0.00013311,2]
[353661177,1739985056875,-1110.4,0.00013311,2]
[353661178,1739985056885,-500.0,0.00013311,2]
[353661179,1739985056894,-500.0,0.00013311,2]
[353661180,1739985056903,-564.85,0.00013311,2]
[353661181,1739985056913,-983.93,0.00013311,2]
[353661182,1739985056923,-667.63,0.00013311,2]
[353661183,1739985056931,-625.51,0.00013311,2]
[353661184,1739985056941,-500.0,0.00013311,2]
[353661185,1739985056950,-500.0,0.00013311,2]
[353661186,1739985056959,-755.76,0.00013311,2]
[353661187,1739985056971,-844.39,0.00013311,2]
[353661188,1739985056983,-713.43,0.00013311,2]
[353661189,1739985056995,-622.65,0.00013311,2]
[353661190,1739985057008,-706.84,0.00013311,2]
[353661191,1739985057018,-1030.1,0.00013311,2]
[353661192,1739985057029,-836.74,0.00013311,2]
[353661193,1739985057040,-1432.01,0.00013311,2]
[353661194,1739985057052,-751.55,0.00013311,2]
[353661195,1739985057064,-729.77,0.00013311,2]
[353661196,1739985057075,-657.08,0.00013311,2]
[353661197,1739985057088,-950.04,0.00013311,2]
[353661198,1739985057100,-1487.73,0.00013311,2]
[353661199,1739985057112,-900.2,0.00013311,2]
[353661200,1739985057125,-1123.27,0.00013311,2]
[353661201,1739985057138,-500.0,0.00013311,2]
[353661202,1739985057150,-646.39,0.00013311,2]
[353661203,1739985057160,-1314.82,0.00013311,2]
[353661204,1739985057170,-1060.35,0.00013311,2]
[353661205,1739985057183,-1000.0,0.00013311,2]
[353661206,1739985057194,-500.0,0.00013311,2]
[353661207,1739985057206,-1353.75,0.00013311,2]
[353661208,1739985057218,-1386.22,0.00013311,2]
[353661209,1739985057230,-1662.79,0.00013311,2]
[353661210,1739985057242,-523.76,0.00013311,2]
[353661211,1739985057254,-1162.47,0.00013311,2]
[353661212,1739985057266,-1390.67,0.00013311,2]
[353661213,1739985057277,-635.9,0.00013311,2]
[353661214,1739985057288,-1180.3,0.00013311,2]
[353661215,1739985057301,-900.39,0.00013311,2]
[353661216,1739985057314,-814.75,0.00013311,2]
[353661217,1739985057327,-500.0,0.00013311,2]
[353661218,1739985057339,-954.74,0.00013311,2]
[353661219,1739985057352,-807.78,0.00013311,2]
[353661220,1739985057364,-941.38,0.00013311,2]
[353661221,1739985057375,-500.0,0.00013311,2]
[353661222,1739985057387,-925.15,0.00013311,2]
[353661223,1739985057399,-1096.84,0.00013311,2]
[353661224,1739985057412,-2341.16,0.00013311,2]
[353661225,1739985057423,-1234.93,0.00013311,2]
[353661226,1739985057434,-1367.46,0.00013311,2]
[353661227,1739985057447,-2003.02,0.00013311,2]
[353661228,1739985057457,-1141.98,0.00013311,2]
[353661229,1739985057468,-2921.21,0.00013311,2]
[353661230,1739985057479,-1935.34,0.00013311,2]
[353661231,1739985057490,-1525.0,0.00013311,2]
[353661232,1739985057503,-2621.72,0.00013311,2]
[353661233,1739985057516,-500.0,0.00013311,2]
[353661234,1739985057526,-8015.87,0.00013311,2]
[353661235,1739985057536,-500.0,0.00013311,2]
[353661236,1739985057546,-910.5,0.00013311,2]
[353661237,1739985057556,-531.36,0.00013311,2]
[353661238,1739985057568,-1586.74,0.00013311,2]
[353661239,1739985057582,-500.0,0.00013311,2]
[353661240,1739985057595,-1882.51,0.00013311,2]
[353661241,1739985057606,-867.54,0.00013311,2]
[353661242,1739985057617,-1667.33,0.00013311,2]
[353661243,1739985057627,-678.55,0.00013311,2]
[353661244,1739985057638,-2830.22,0.00013311,2]
[353661245,1739985057649,-1366.09,0.00013311,2]
[353661246,1739985057663,-1632.54,0.00013311,2]
[353661247,1739985057674,-861.68,0.00013311,2]
[353661248,1739985057686,-1747.93,0.00013311,2]
[353661249,1739985057697,-500.0,0.00013311,2]
[353661250,1739985057709,-1566.82,0.00013311,2]
[353661251,1739985057720,-2222.1,0.00013311,2]
[353661252,1739985057732,-1473.96,0.00013311,2]
[353661253,1739985057744,-2971.09,0.00013311,2]
[353661254,1739985057758,-500.0,0.00013311,2]
[353661255,1739985057770,-1933.48,0.00013311,2]
[353661256,1739985057781,-812.08,0.00013311,2]
[353661257,1739985057793,-2492.18,0.00013311,2]
[353661258,1739985057806,-771.79,0.00013311,2]
[353661259,1739985057818,-626.15,0.00013311,2]
[353661260,1739985057831,-500.0,0.00013311,2]
[353661261,1739985057842,-500.0,0.00013311,2]
[353661262,1739985057854,-909.75,0.00013311,2]
[353661263,1739985057865,-2763.09,0.00013311,2]
[353661264,1739985057877,-500.0,0.00013311,2]
[353661265,1739985057889,-863.17,0.00013311,2]
[353661266,1739985057900,-868.16,0.00013312,2]
[353661267,1739985057912,-959.61,0.00013312,2]
[353661268,1739985057923,-1112.25,0.00013312,2]
[353661269,1739985057934,-500.0,0.00013312,2]
[353661270,1739985057944,-500.0,0.00013312,2]
[353661271,1739985057956,-558.13,0.00013312,2]
[353661272,1739985057966,-798.77,0.00013312,2]
[353661273,1739985057978,-500.0,0.00013312,2]
[353661274,1739985057989,-500.0,0.00013312,2]
[353661275,1739985058000,-500.0,0.00013312,2]
[353661276,1739985058011,-500.0,0.00013312,2]
[353661277,1739985058022,-500.0,0.00013312,2]
[353661278,1739985058032,-830.8,0.00013312,2]
[353661279,1739985058043,-919.5,0.00013312,2]
[353661280,1739985058055,-500.0,0.00013312,2]
[353661281,1739985058067,-500.0,0.00013312,2]
[353661282,1739985058077,-500.0,0.00013312,2]
[353661283,1739985058089,-568.88,0.00013312,2]
[353661284,1739985058101,-500.0,0.00013312,2]
[353661285,1739985058112,-500.0,0.00013312,2]
[353661286,1739985058123,-500.0,0.00013312,2]
[353661287,1739985058135,-500.0,0.00013312,2]
[353661288,1739985058146,-720.94,0.00013312,2]
[353661289,1739985058157,-500.0,0.00013312,2]
[353661290,1739985058168,-500.0,0.00013312,2]
[353661291,1739985058179,-500.0,0.00013312,2]
[353661292,1739985058189,-519.75,0.00013312,2]
[353661293,1739985058201,-792.83,0.00013312,2]
[353661294,1739985058212,-500.0,0.00013312,2]
[353661295,1739985058223,-500.0,0.00013312,2]
[353661296,1739985058234,-714.36,0.00013312,2]
[353661297,1739985058245,-573.42,0.00013312,2]
[353661298,1739985058256,-500.0,0.00013312,2]
[353661299,1739985058266,-500.0,0.00013312,2]
[353661300,1739985058277,-500.0,0.00013312,2]
[353661301,1739985058289,-500.0,0.00013312,2]
[353661302,1739985058299,-503.38,0.00013312,2]
[353661303,1739985058310,-500.0,0.00013312,2]
[353661304,1739985058320,-500.0,0.00013312,2]
[353661305,1739985058331,-500.0,0.00013312,2]
[353661306,1739985058343,-1009.24,0.00013312,2]
[353661307,1739985058354,-500.0,0.00013312,2]
[353661308,1739985058365,-500.0,0.00013312,2]
[353661309,1739985058377,-500.0,0.00013312,2]
[353661310,1739985058388,-500.0,0.00013312,2]
[353661311,1739985058399,-500.0,0.00013312,2]
[353661312,1739985058410,-500.0,0.00013312,2]
[353661313,1739985058420,-500.0,0.00013312,2]
[353661314,1739985058431,-500.0,0.00013312,2]
[353661315,1739985058443,-500.0,0.00013312,2]
[353661316,1739985058457,-500.0,0.00013312,2]
[353661317,1739985058467,-500.0,0.00013312,2]
[353661318,1739985058478,-814.99,0.00013312,2]
[353661319,1739985058490,-500.0,0.00013312,2]
[353661320,1739985058501,-446.94676538,0.00013312,2]
[353661321,1739985058511,-500.0,0.00013312,2]
[353661322,1739985058528,-527.33,0.00013312,2]
[353661323,1739985058540,-500.0,0.00013312,2]
[353661324,1739985058551,-806.27,0.00013312,2]
[353661325,1739985058562,-676.66,0.00013312,2]
[353661326,1739985058572,-524.64,0.00013312,2]
[353661327,1739985058583,-500.0,0.00013312,2]
[353661328,1739985058594,-1050.26,0.00013312,2]
[353661329,1739985058605,-518.71125543,0.00013312,2]
[353661330,1739985058616,-500.0,0.00013312,2]
[353661331,1739985058627,-1003.28,0.00013312,2]
[353661332,1739985058638,-504.12,0.00013312,2]
[353661333,1739985058648,-500.0,0.00013312,2]
[353661334,1739985058659,-1349.94,0.00013312,2]
[353661335,1739985058670,-655.18,0.00013312,2]
[353661336,1739985058681,-547.39,0.00013312,2]
[353661337,1739985058692,-969.79,0.00013312,2]
[353661338,1739985058703,-987.4,0.00013312,2]
[353661339,1739985058714,-500.0,0.00013312,2]
[353661340,1739985058724,-500.0,0.00013312,2]
[353661341,1739985058735,-500.0,0.00013312,2]
[353661342,1739985058746,-852.73,0.00013312,2]
[353661343,1739985058758,-500.0,0.00013312,2]
[353661344,1739985058768,-500.0,0.00013312,2]
[353661345,1739985058779,-1192.6,0.00013312,2]
[353661346,1739985058790,-500.0,0.00013312,2]
[353661347,1739985058801,-500.0,0.00013312,2]
[353661348,1739985058812,-1511.71,0.00013312,2]
[353661349,1739985058823,-500.0,0.00013312,2]
[353661350,1739985058834,-500.0,0.00013312,2]
[353661351,1739985058845,-500.0,0.00013312,2]
[353661352,1739985058856,-500.0,0.00013312,2]
[353661353,1739985058867,-500.0,0.00013312,2]
[353661354,1739985058878,-500.0,0.00013312,2]
[353661355,1739985058889,-500.0,0.00013312,2]
[353661356,1739985058900,-803.08,0.00013312,2]
[353661357,1739985058912,-1588.0,0.00013312,2]
[353661358,1739985058923,-500.0,0.00013312,2]
[353661359,1739985058933,-500.0,0.00013312,2]
[353661360,1739985058944,-889.73,0.00013312,2]
[353661361,1739985058955,-500.0,0.00013312,2]
[353661362,1739985058966,-500.0,0.00013312,2]
[353661363,1739985058978,-584.63,0.00013312,2]
[353661364,1739985058988,-1683.1,0.00013312,2]
[353661365,1739985058999,-500.0,0.00013312,2]
[353661366,1739985059010,-1000.0,0.00013312,2]
[353661367,1739985059020,-422.44465649,0.00013312,2]
[353661368,1739985059031,-1822.96,0.00013312,2]
[353661369,1739985059042,-500.0,0.00013312,2]
[353661370,1739985059053,-500.0,0.00013312,2]
[353661371,1739985059063,-500.0,0.00013312,2]
[353661372,1739985059074,-662.53,0.00013312,2]
[353661373,1739985059086,-500.0,0.00013312,2]
[353661374,1739985059097,-2007.99,0.00013312,2]
[353661375,1739985059108,-500.0,0.00013312,2]
[353661376,1739985059120,-500.0,0.00013312,2]
[353661377,1739985059132,-500.0,0.00013312,2]
[353661378,1739985059143,-1375.4,0.00013312,2]
[353661379,1739985059154,-670.86,0.00013312,2]
[353661380,1739985059164,-500.0,0.00013312,2]
[353661381,1739985059175,-500.0,0.00013312,2]
[353661382,1739985059186,-500.0,0.00013312,2]
[353661383,1739985059197,-1116.84,0.00013312,2]
[353661384,1739985059207,-500.0,0.00013312,2]
[353661385,1739985059218,-500.0,0.00013312,2]
[353661386,1739985059228,-593.48,0.00013312,2]
[353661387,1739985059239,-500.0,0.00013312,2]
[353661388,1739985059249,-929.76,0.00013312,2]
[353661389,1739985059260,-500.0,0.00013312,2]
[353661390,1739985059270,-702.88,0.00013312,2]
[353661391,1739985059281,-503.11435782,0.00013312,2]
[353661392,1739985059292,-500.0,0.00013312,2]
[353661393,1739985059303,-2004.33,0.00013312,2]
[353661394,1739985059314,-500.0,0.00013312,2]
[353661395,1739985059324,-500.0,0.00013312,2]
[353661396,1739985059336,-500.0,0.00013312,2]
[353661397,1739985059346,-1433.44,0.00013312,2]
[353661398,1739985059358,-500.0,0.00013312,2]
[353661399,1739985059371,-500.0,0.00013312,2]
[353661400,1739985059382,-1881.01,0.00013312,2]
[353661401,1739985059393,-500.0,0.00013312,2]
[353661402,1739985059404,-500.0,0.00013312,2]
[353661403,1739985059415,-503.23908938,0.00013312,2]
[353661404,1739985059426,-500.0,0.00013312,2]
[353661405,1739985059437,-823.04,0.00013312,2]
[353661406,1739985059450,-933.24,0.00013312,2]
[353661407,1739985059461,-1598.8,0.00013312,2]
[353661408,1739985059472,-843.84,0.00013312,2]